Workbook

Sheet PFP
A1: PROPOSTA FINANCEIRA DO PROJETO | J1: CODIGO:
J2: PFP
A3: NOME DA CONSULTORA:
A5: PROJETO: | F5: CONTRATANTE: | J5: BASE: Nov/2021
A6: Estudos e Projeto Básico e Executivo do Sistema de Abastecimento de Água de Morro Cabeça no Tempo/PI | F6: CODEVASF (SEDE) | J6: PROP: Nov/2021 SINAPI/DF: Maio/2021 SICRO/NA: Jan/2021
A7: Base | B7: Cod2 | C7: Cod3 | D7: Categoria / Insumo | E7: Uni | F7: Qde | G7: CUD | H7: PU | I7: FatorK | J7: CT | K7: PT
A8: SICRO | B8: MO3 | C8: P0 | D8: Engenheiro coordenador (P8061) | E8: mês | F8: ='CRO1_Ins-Pro'!D5 -> 1 | G8: 16003.36 | H8: =ROUND(I8*G8,2) -> 23110.45 | I8: =PFP2.3_FatorKc!E36 -> 1.4441 | J8: =ROUND(F8*G8,2) -> 16003.36 | K8: =ROUND(F8*H8,2) -> 23110.45
A9: SICRO | B9: MO2 | C9: P1 | D9: Engenheiro sênior (P8067) | E9: mês | F9: ='CRO1_Ins-Pro'!D6 -> 2 | G9: 13560.49 | H9: 22989.1 | I9: =PFP2.2_FatorKb!$E$36 -> 1.6953 | J9: 27120.98 | K9: 45978.2
A10: SICRO | B10: MO1 | C10: P2 | D10: Engenheiro pleno (P8066) | E10: mês | F10: ='CRO1_Ins-Pro'!D7 -> 3 | G10: 10307.29 | H10: =ROUND(I10*G10,2) -> 24341.7 | I10: =PFP2.1_FatorKa!$E$36 -> 2.3616 | J10: =ROUND(F10*G10,2) -> 30921.87 | K10: 73025.1
A11: SICRO | B11: MO1 | C11: P3 | D11: Engenheiro júnior (P8065) | E11: mês | F11: ='CRO1_Ins-Pro'!D8 -> 1 | G11: 9350 | H11: =ROUND(I11*G11,2) -> 22080.96 | I11: =PFP2.1_FatorKa!$E$36 -> 2.3616 | J11: =ROUND(F11*G11,2) -> 9350 | K11: 22080.96
A12: SICRO | B12: MO1 | C12: T1 | D12: Técnico de projetos/obra (P8147) | E12: mês | F12: ='CRO1_Ins-Pro'!D9 -> 3 | G12: 2894.21 | H12: 6834.97 | I12: =PFP2.1_FatorKa!$E$36 -> 2.3616 | J12: 8682.63 | K12: 20504.91
A13: SICRO | B13: MO1 | C13: A1 | D13: Secretária (P8135) | E13: mês | F13: ='CRO1_Ins-Pro'!D10 -> 1 | G13: 2204.93 | H13: =ROUND(I13*G13,2) -> 5207.16 | I13: =PFP2.1_FatorKa!$E$36 -> 2.3616 | J13: =ROUND(F13*G13,2) -> 2204.93 | K13: =ROUND(F13*H13,2) -> 5207.16
A14: PROP | B14: MO1 | C14: S1 | D14: Analista sênior | E14: mês | F14: ='CRO1_Ins-Pro'!D11 -> 0.5 | G14: 6247.13 | H14: 14753.22 | I14: =PFP2.1_FatorKa!$E$36 -> 2.3616 | J14: 3123.57 | K14: 7376.61
A15: PROP | B15: MO1 | C15: S2 | D15: Analista pleno | E15: mês | F15: ='CRO1_Ins-Pro'!D12 -> 0.5 | G15: 3784.58 | H15: 8937.66 | I15: =PFP2.1_FatorKa!$E$36 -> 2.3616 | J15: 1892.29 | K15: 4468.83
A16: PROP | B16: MO1 | C16: S3 | D16: Analista júnior | E16: mês | F16: ='CRO1_Ins-Pro'!D13 -> 1 | G16: 3104.97 | H16: 7332.7 | I16: =PFP2.1_FatorKa!$E$36 -> 2.3616 | J16: 3104.97 | K16: 7332.7
A17: SICRO | B17: EC | C17: ECA | D17: Encargos Comp. e Adicionais | E17: mês | F17: ='CRO1_Ins-Pro'!D14 -> 11 | G17: 815.05 | H17: 1023.54 | I17: =PFP3_FatorKd!$E$17 -> 1.2558 | J17: =ROUND(F17*G17,2) -> 8965.55 | K17: =ROUND(F17*H17,2) -> 11258.94
A18: PROP | B18: EC | C18: AT1 | D18: Auxilio Transporte Analista junior | E18: mês | F18: =F16 -> 1 | G18: =IF((22*5)-(G16*0.06*22/30)>0,(22*5)-(G16*0.06*22/30),0) -> 0 | H18: =ROUND(I18*G18,2) -> 0 | I18: =PFP3_FatorKd!$E$17 -> 1.2558 | J18: =ROUND(F18*G18,2) -> 0 | K18: =ROUND(F18*H18,2) -> 0
A19: PROP | B19: EC | C19: AT2 | D19: Auxilio Transporte Técnicos | E19: mês | F19: ='CRO1_Ins-Pro'!D16 -> 2 | G19: =IF((22*5)-(G12*0.06*22/30)>0,(22*5)-(G12*0.06*22/30),0) -> 0 | H19: =ROUND(I19*G19,2) -> 0 | I19: =PFP3_FatorKd!$E$17 -> 1.2558 | J19: =ROUND(F19*G19,2) -> 0 | K19: =ROUND(F19*H19,2) -> 0
A20: PROP | B20: EC | C20: AT3 | D20: Auxilio Transporte Secretária | E20: mês | F20: ='CRO1_Ins-Pro'!D17 -> 1 | G20: =IF((22*5)-(G13*0.06*22/30)>0,(22*5)-(G13*0.06*22/30),0) -> 12.98308 | H20: 16.3 | I20: =PFP3_FatorKd!$E$17 -> 1.2558 | J20: 12.98 | K20: 16.3
A21: CODE | B21: LO | C21: V1 | D21: Diárias | E21: dia | F21: ='CRO1_Ins-Pro'!D18 -> 28 | G21: 239 | H21: 300.14 | I21: =PFP3_FatorKd!$E$17 -> 1.2558 | J21: 6692 | K21: 8403.92
A22: PROP | B22: LO | C22: V2 | D22: Pick-up Cab.dupla 2.0 Flex | E22: dia | F22: ='CRO1_Ins-Pro'!D19 -> 14 | G22: 534.65 | H22: 671.41 | I22: =PFP3_FatorKd!$E$17 -> 1.2558 | J22: 7485.1 | K22: 9399.74
A23: PROP | B23: LO | C23: V3 | D23: Passagens Aéreas (ida e volta) | E23: un | F23: ='CRO1_Ins-Pro'!D20 -> 4 | G23: 1346.75 | H23: 1691.25 | I23: =PFP3_FatorKd!$E$17 -> 1.2558 | J23: 5387 | K23: 6765
A24: CODE | B24: EM | C24: M1 | D24: Relatório Parcial | E24: un | F24: ='CRO1_Ins-Pro'!D21 -> 9 | G24: 34.41245818 | H24: 43.22 | I24: =PFP3_FatorKd!$E$17 -> 1.2558 | J24: 309.71 | K24: =ROUND(F24*H24,2) -> 388.98
A25: CODE | B25: EM | C25: M2 | D25: Relatório Final | E25: un | F25: ='CRO1_Ins-Pro'!D22 -> 9 | G25: 1525.911339 | H25: 1916.24 | I25: =PFP3_FatorKd!$E$17 -> 1.2558 | J25: 13733.2 | K25: =ROUND(F25*H25,2) -> 17246.16
A26: CODE | B26: SU | C26: TOP | D26: Total Serviços Cartográficos | E26: un | F26: ='CRO1_Ins-Pro'!D23 -> 1 | G26: - | H26: =PFP1.1_Topo!G23 -> 97246.15 | I26: - | J26: - | K26: =ROUND(F26*H26,2) -> 97246.15
A27: CODE | B27: SU | C27: GEO | D27: Total Serviços Geotécnicos | E27: un | F27: ='CRO1_Ins-Pro'!D24 -> 1 | G27: - | H27: =PFP1.2_Geo!G34 -> 77913.39 | I27: - | J27: - | K27: =ROUND(F27*H27,2) -> 77913.39
A28: CODE | B28: SU | C28: AMB | D28: Total Serviços Ambientais | E28: un | F28: ='CRO1_Ins-Pro'!D25 -> 1 | G28: - | H28: =PFP1.3_Amb!G29 -> 3333.24 | I28: - | J28: - | K28: =ROUND(F28*H28,2) -> 3333.24
A29: TOTAL DOS CUSTOS DIRETOS | H29: =SUM(J8:J28) -> 144990.14
A30: TOTAL DOS ENCARGOS E DISPESAS DIVERSAS | H30: =H31-H29 -> 117573.82
A31: TOTAL DA PROPOSTA A PREÇO GLOBAL | H31: =SUM(K8:K25) -> 262563.96
A32: TOTAL DA PROPOSTA A PREÇO UNITÁRIO | H32: =SUM(K26:K28) -> 178492.78
A33: TOTAL DA PROPOSTA | H33: =SUM(K8:K28) -> 441056.74
A34: OBSERVAÇÃO:
A35: Alocar os Insumos MO, com respectivo FatorK, dentro da categoria de vínculo contratual (celetista, autonomo, societario)
A36: Uni - unidade de medição do insumo;
A37: Qde - Quantidade do Insumo (não pode ocorrer alteração pela Licitante)
A38: CUD - Custo Unitário Direto do Insumo (sem encargos, taxas e impostos, valor não pode ser maior que o Orçado pela Codevasf)
A39: CT - Custo Total (sem encargos, taxas e impostos) - CT = Qde x CUD
A40: FatorK - Taxa de Ressarcimento de Despesas e Encargos (detalhar composição nas Planilhas "PFP2.1", "PFP2.2", "PFP3")
A41: PU - Preço Unitário do Insumo (incluído encargos, taxas e impostos) - PU = CUD x FatorK
A42: PT - Preço Total do Insumo (incluído encargos, taxas e impostos) - PT = Qde x PU
A43: P - Profissionais nível superior nas áreas de Engenharia, Química, Arquitetura, Agronomia e Veterinária, conforme disposições da Lei 4.950-A/66
A44: S - Profissionais de nível superior nas demais áreas de atuação, incluindo Arqueólogo, Biólogo, Geógrafo e Sociólogo
A45: T - Profissionais de nível médio técnico nas diversas áreas de atuação
A46: A - Profissionais de nível médio de apoio técnico-administrativo

Sheet PFP1.1_Topo
A1: SERVIÇOS TOPOGRÁFICOS/CARTOGRÁFICOS | G1: CODIGO:
G2: PFP-1.1
A3: NOME DA EMPRESA:
A5: PROJETO: | E5: CONTRATANTE: | G5: BASE: Nov/2021
A6: =PFP!A6 -> Estudos e Projeto Básico e Executivo do Sistema de Abastecimento de Água de Morro Cabeça no Tempo/PI | E6: CODEVASF (SEDE) | G6: CODE: Ago/2021
A7: Cod. | B7: Base | C7: Insumos | D7: Uni | E7: Qde | F7: Preço Unitário (PU) | G7: Preço Total (PT)
A8: TP08 | B8: CODE | C8: Nivelamento Geométrico classe IIN | D8: km | E8: 20 | F8: 788.72 | G8: =ROUND(F8*E8,2) -> 15774.4
A9: TP09 | B9: CODE | C9: Nivelamento Geométrico classe IIN (Secções) | D9: km | E9: 20 | F9: 788.72 | G9: 15774.4
A10: TP16.1 | B10: CODE | C10: Poligonal Classe IIP (Locação) | D10: km | E10: 20 | F10: 1774.07 | G10: 35481.4
A11: TP19 | B11: CODE | C11: Pontos GPS de dupla frequencia (L1/L2) | D11: km | E11: 8 | F11: 981.07 | G11: 7848.56
A12: TP21 | B12: CODE | C12: Levantamento Topobatimétrico | D12: km | E12: 1 | F12: 1260.83 | G12: 1260.83
A13: TP23 | B13: CODE | C13: Cadastro Físico (Faixa domínio e instalações) | D13: ha | E13: 20 | F13: 17.86 | G13: 357.2
A14: TP24 | B14: CODE | C14: Cadastro Agrícola (Faixa domínio e instalações) | D14: ha | E14: 20 | F14: 5.95 | G14: 119
A15: TP25 | B15: CODE | C15: Cadastro Jurídico (Faixa domínio e instalações) | D15: ha | E15: 20 | F15: 11.91 | G15: 238.2
A16: TP26 | B16: CODE | C16: Cadastro Socioeconomico (Faixa domínio e instalações) | D16: ha | E16: 20 | F16: 3.97 | G16: 79.4
A17: TP27 | B17: CODE | C17: Marco de Concreto (12x18x60cm) | D17: un | E17: 8 | F17: 53.89 | G17: 431.12
A18: TP28 | B18: CODE | C18: Estaca Testemunha de Madeira (2x4x70cm) | D18: un | E18: 100 | F18: 14.46 | G18: 1446
A19: TP29 | B19: CODE | C19: Piquetes de Madeira (2x2x20cm) | D19: un | E19: 1000 | F19: 2.41 | G19: 2410
A20: TP30 | B20: CODE | C20: Imagem de Satelite de Alta Definição 0,5 M | D20: km² | E20: 100 | F20: 105.76 | G20: 10576
A21: PD06 | B21: CODE | C21: Picada Manual p/ levantamento TP | D21: km | E21: 10 | F21: 194.88 | G21: 1948.8
A22: PD08 | B22: CODE | C22: Picada c/ Trator de Esteira | D22: un | E22: 4 | F22: 875.21 | G22: 3500.84
A23: TOTAL SERVIÇOS TOPOGRÁFICOS | G23: =SUM(G8:G22) -> 97246.15
A24: OBSERVAÇÃO:
A25: Uni - unidade de medição do insumo;
A26: Qde - Quantidade do Insumo (não pode ocorrer alteração pela Licitante)
A27: PU - Preço Unitário (composições padrão da Codevasf, já incluso o FatorK)
A28: PT - Preço Total (incluído encargos, taxas e impostos) - PT = Qde x PU

Sheet PFP1.2_Geo
A1: SERVIÇOS GEOLÓGICOS/GEOTÉCNICOS | G1: CODIGO:
G2: PFP-1.2
A3: NOME DA EMPRESA:
A5: PROJETO: | E5: CONTRATANTE: | G5: BASE: Nov/2021
A6: =PFP!A6 -> Estudos e Projeto Básico e Executivo do Sistema de Abastecimento de Água de Morro Cabeça no Tempo/PI | E6: CODEVASF (SEDE) | G6: CODE: Ago/2021
A7: Cod. | B7: Base | C7: Insumos | D7: Uni | E7: Qde | F7: Preço Unitário (PU) | G7: Preço Total (PT)
A8: GT07 | B8: CODE | C8: Sondagem Percussão: (Des)Mobilização | D8: un | E8: 2 | F8: 926.31 | G8: =ROUND(F8*E8,2) -> 1852.62
A9: GT08 | B9: CODE | C9: Sondagem Percursão: com SPT | D9: m | E9: 24 | F9: 81.23 | G9: 1949.52
A10: GT09 | B10: CODE | C10: Sondagem Percursão: Desloc/Instalação 0-200 m | D10: un | E10: 4 | F10: 721.44 | G10: 2885.76
A11: GT10 | B11: CODE | C11: Sondagem Percursão: Desloc/Instalação 201-500 m | D11: un | E11: 2 | F11: 1055.73 | G11: 2111.46
A12: GT11 | B12: CODE | C12: Sondagem Percursão: Desloc/Instalação >500 m | D12: un | E12: 10 | F12: 1390.03 | G12: 13900.3
A13: GT13 | B13: CODE | C13: Sondagem Trado 4'' | D13: m | E13: 10 | F13: 68.44 | G13: 684.4
A14: GT14 | B14: CODE | C14: Poço de Inspeção | D14: m | E14: 60 | F14: 200.96 | G14: 12057.6
A15: GT15 | B15: CODE | C15: Ensaio: Umidade Natural | D15: un | E15: 4 | F15: 89.04 | G15: 356.16
A16: GT16 | B16: CODE | C16: Ensaio: Densidade Natural | D16: un | E16: 4 | F16: 89.04 | G16: 356.16
A17: GT17 | B17: CODE | C17: Ensaio: Limite de Liquidez | D17: un | E17: 4 | F17: 123.31 | G17: 493.24
A18: GT18 | B18: CODE | C18: Ensaio: Limite de Plasticidade | D18: un | E18: 4 | F18: 123.31 | G18: 493.24
A19: GT19 | B19: CODE | C19: Ensaio: Granulometria por Peneiramento | D19: un | E19: 4 | F19: 129.99 | G19: 519.96
A20: GT20 | B20: CODE | C20: Ensaio: Granulometria por Sedimentação | D20: un | E20: 4 | F20: 403.42 | G20: 1613.68
A21: GT21 | B21: CODE | C21: Ensaio: Compactação Proctor Normal | D21: un | E21: 4 | F21: 169.06 | G21: 676.24
A22: GT22 | B22: CODE | C22: Ensaio: Massa Especifica Real dos Grãos | D22: un | E22: 4 | F22: 109.89 | G22: 439.56
A23: GT23 | B23: CODE | C23: Ensaio: Adensamento Oedométrico | D23: un | E23: 4 | F23: 298.85 | G23: 1195.4
A24: GT28 | B24: CODE | C24: Ensaio: Dispersão Granulometria Comparativa | D24: un | E24: 4 | F24: 240.82 | G24: 963.28
A25: GT29 | B25: CODE | C25: Ensaio: Dispersão Crumb Test | D25: un | E25: 4 | F25: 89.22 | G25: 356.88
A26: GT30 | B26: CODE | C26: Ensaio: Infiltração | D26: un | E26: 4 | F26: 240.82 | G26: 963.28
A27: GT32 | B27: CODE | C27: Ensaio: Análise Quimica da Areia | D27: un | E27: 2 | F27: 484.6 | G27: 969.2
A28: GT33 | B28: CODE | C28: Ensaio: Mineralogia da Areia | D28: un | E28: 2 | F28: 557.72 | G28: 1115.44
A29: GT34 | B29: CODE | C29: Ensaio: Análise Petrográfica/Mineralogia | D29: un | E29: 2 | F29: 557.72 | G29: 1115.44
A30: GT35 | B30: CODE | C30: Ensaio: Abrasão Los Angeles | D30: un | E30: 2 | F30: 436.51 | G30: 873.02
A31: GT36 | B31: CODE | C31: Ensaio: Reatividade Potencial | D31: un | E31: 2 | F31: 1457.19 | G31: 2914.38
A32: GT38 | B32: CODE | C32: Ensaio: Retirada de Amostra Indeformada | D32: un | E32: 2 | F32: 728.59 | G32: =ROUND(F32*E32,2) -> 1457.18
A33: GT99 | B33: PROP | C33: Levantamento geofísico por eletroressistividade | D33: un | E33: 3 | F33: 8533.33 | G33: =ROUND(F33*E33,2) -> 25599.99
A34: TOTAL SERVIÇOS GEOTÉCNICOS | G34: =SUM(G8:G33) -> 77913.39
A35: LEGENDA:
A36: Uni - unidade de medição do insumo;
A37: Qde - Quantidade do Insumo (não pode ocorrer alteração pela Licitante)
A38: PU - Preço Unitário (composições padrão da Codevasf, já incluso o FatorK)
A39: PT - Preço Total (incluído encargos, taxas e impostos) - PT = Qde x PU

Sheet PFP1.3_Amb
A1: SERVIÇOS ANÁLISE AMBIENTAL | G1: CODIGO:
G2: PFP-1.3
A3: NOME DA EMPRESA:
A5: PROJETO: | E5: CONTRATANTE: | G5: BASE: Nov/2021
A6: =PFP!A6 -> Estudos e Projeto Básico e Executivo do Sistema de Abastecimento de Água de Morro Cabeça no Tempo/PI | E6: CODEVASF (SEDE) | G6: CODE: Ago/2021
A7: Cod. | B7: Base | C7: Insumos | D7: Uni | E7: Qde | F7: Preço Unitário (PU) | G7: Preço Total (PT)
A8: AM01 | B8: PROP | C8: Alcalinidade Total | D8: un | E8: 3 | F8: 41.49 | G8: =ROUND(E8*F8,2) -> 124.47
A9: AM02 | B9: PROP | C9: Condutividade | D9: un | E9: 3 | F9: 42.18 | G9: =ROUND(E9*F9,2) -> 126.54
A10: AM03 | B10: PROP | C10: DBO | D10: un | E10: 3 | F10: 40.67 | G10: 122.01
A11: AM04 | B11: PROP | C11: DQO | D11: un | E11: 3 | F11: 49.55 | G11: 148.65
A12: AM05 | B12: PROP | C12: Salinidade | D12: un | E12: 3 | F12: 46.69 | G12: 140.07
A13: AM06 | B13: PROP | C13: Sólidos Dissolvidos Totais | D13: un | E13: 3 | F13: 34.51 | G13: 103.53
A14: AM07 | B14: PROP | C14: Sólidos Suspensos | D14: un | E14: 3 | F14: 37.67 | G14: 113.01
A15: AM08 | B15: PROP | C15: Sólidos Totais | D15: un | E15: 3 | F15: 34.51 | G15: 103.53
A16: AM09 | B16: PROP | C16: Turbidez | D16: un | E16: 3 | F16: 25.7 | G16: 77.1
A17: AM10 | B17: PROP | C17: Oxigênio Dissolvido | D17: un | E17: 3 | F17: 40.68 | G17: 122.04
A18: AM11 | B18: PROP | C18: pH | D18: un | E18: 3 | F18: 23.93 | G18: 71.79
A19: AM12 | B19: PROP | C19: Temperatura | D19: un | E19: 3 | F19: 23.8 | G19: 71.4
A20: AM13 | B20: PROP | C20: Fósforo Total | D20: un | E20: 3 | F20: 45.97 | G20: 137.91
A21: AM14 | B21: PROP | C21: Nitrogênio Amoniacal | D21: un | E21: 3 | F21: 48.76 | G21: 146.28
A22: AM15 | B22: PROP | C22: Nitrogênio Nitrato | D22: un | E22: 3 | F22: 36.26 | G22: 108.78
A23: AM16 | B23: PROP | C23: Nitrogênio Total | D23: un | E23: 3 | F23: 42.56 | G23: 127.68
A24: AM17 | B24: PROP | C24: Clorofila A | D24: un | E24: 3 | F24: 121.32 | G24: 363.96
A25: AM18 | B25: PROP | C25: Coliformes Termotolerantes | D25: un | E25: 3 | F25: 34.13 | G25: 102.39
A26: AM19 | B26: PROP | C26: Metais Pesados | D26: un | E26: 3 | F26: 169.87 | G26: 509.61
A27: AM20 | B27: PROP | C27: Organoclorados | D27: un | E27: 3 | F27: 90.57 | G27: 271.71
A28: AM21 | B28: PROP | C28: Organofosforado | D28: un | E28: 3 | F28: 80.26 | G28: =ROUND(E28*F28,2) -> 240.78
A29: TOTAL SERVIÇOS GEOTÉCNICOS | G29: =SUM(G8:G28) -> 3333.24
A30: LEGENDA:
A31: Uni - unidade de medição do insumo;
A32: Qde - Quantidade do Insumo (não pode ocorrer alteração pela Licitante)
A33: PU - Preço Unitário (composições padrão da Codevasf, já incluso o FatorK)
A34: PT - Preço Total (incluído encargos, taxas e impostos) - PT = Qde x PU

Sheet PFP2.1_FatorKa
A1: DETALHAMENTO DOS ENCARGOS SOCIAIS: Ka | F1: CODIGO:
F2: PFP-2.1
A3: NOME DA CONSULTORA:
A5: PROJETO: | C5: CONTRATANTE: | F5: BASE: Nov/2021
A6: =PFP!A6 -> Estudos e Projeto Básico e Executivo do Sistema de Abastecimento de Água de Morro Cabeça no Tempo/PI | C6: CODEVASF (SEDE) | F6: SINAPI/DF: Mai/2021
A7: Cod | B7: DESCRIÇÃO | E7: % | F7: R$
A8: A | B8: ENCARGOS SOCIAIS BÁSICOS | E8: =ROUND(SUM(E9:E17),4) -> 0.378 | F8: =ROUND(E8*SUMIF(PFP!$B$8:$B$27,"MO1",PFP!$J$8:$J$27),2) -> 22407.94
A9: A1 | B9: INSS | E9: 0.2 | F9: =ROUND(E9*SUMIF(PFP!$B$8:$B$27,"MO1",PFP!$J$8:$J$27),2) -> 11856.05
A10: A2 | B10: SESI | E10: 0.015 | F10: =ROUND(E10*SUMIF(PFP!$B$8:$B$27,"MO1",PFP!$J$8:$J$27),2) -> 889.2
A11: A3 | B11: SENAI | E11: 0.01 | F11: =ROUND(E11*SUMIF(PFP!$B$8:$B$27,"MO1",PFP!$J$8:$J$27),2) -> 592.8
A12: A4 | B12: INCRA | E12: 0.002 | F12: =ROUND(E12*SUMIF(PFP!$B$8:$B$27,"MO1",PFP!$J$8:$J$27),2) -> 118.56
A13: A5 | B13: SEBRAE | E13: 0.006 | F13: =ROUND(E13*SUMIF(PFP!$B$8:$B$27,"MO1",PFP!$J$8:$J$27),2) -> 355.68
A14: A6 | B14: Salário Educação | E14: 0.025 | F14: =ROUND(E14*SUMIF(PFP!$B$8:$B$27,"MO1",PFP!$J$8:$J$27),2) -> 1482.01
A15: A7 | B15: Seguro Contra Acidentes de Trabalho | E15: 0.03 | F15: =ROUND(E15*SUMIF(PFP!$B$8:$B$27,"MO1",PFP!$J$8:$J$27),2) -> 1778.41
A16: A8 | B16: FGTS | E16: 0.08 | F16: =ROUND(E16*SUMIF(PFP!$B$8:$B$27,"MO1",PFP!$J$8:$J$27),2) -> 4742.42
A17: A9 | B17: SECONCI | E17: 0.01 | F17: =ROUND(E17*SUMIF(PFP!$B$8:$B$27,"MO1",PFP!$J$8:$J$27),2) -> 592.8
A18: B | B18: ENCARGOS SOCIAIS QUE RECEBEM INCIDÊNCIA DE "A" | E18: =ROUND(SUM(E19:E25),4) -> 0.2036 | F18: =ROUND(E18*SUMIF(PFP!$B$8:$B$27,"MO1",PFP!$J$8:$J$27),2) -> 12069.46
A19: B3 | B19: Auxílio Enfermidade | E19: 0.0067 | F19: =ROUND(E19*SUMIF(PFP!$B$8:$B$27,"MO1",PFP!$J$8:$J$27),2) -> 397.18
A20: B4 | B20: 13º Salário | E20: 0.0833 | F20: =ROUND(E20*SUMIF(PFP!$B$8:$B$27,"MO1",PFP!$J$8:$J$27),2) -> 4938.05
A21: B5 | B21: Licença Paternidade | E21: 0.0006 | F21: =ROUND(E21*SUMIF(PFP!$B$8:$B$27,"MO1",PFP!$J$8:$J$27),2) -> 35.57
A22: B6 | B22: Faltas Justificadas | E22: 0.0056 | F22: =ROUND(E22*SUMIF(PFP!$B$8:$B$27,"MO1",PFP!$J$8:$J$27),2) -> 331.97
A23: B8 | B23: Auxílio Acidente de Trabalho | E23: 0.0008 | F23: =ROUND(E23*SUMIF(PFP!$B$8:$B$27,"MO1",PFP!$J$8:$J$27),2) -> 47.42
A24: B9 | B24: Férias Gozadas | E24: 0.1063 | F24: =ROUND(E24*SUMIF(PFP!$B$8:$B$27,"MO1",PFP!$J$8:$J$27),2) -> 6301.49
A25: B10 | B25: Salário Maternidade | E25: 0.0003 | F25: =ROUND(E25*SUMIF(PFP!$B$8:$B$27,"MO1",PFP!$J$8:$J$27),2) -> 17.78
A26: C | B26: ENCARGOS SOCIAIS QUE NÃO RECEBEM INCIDÊNCIA DE "A" | E26: =ROUND(SUM(E27:E31),4) -> 0.0691 | F26: =ROUND(E26*SUMIF(PFP!$B$8:$B$27,"MO1",PFP!$J$8:$J$27),2) -> 4096.27
A27: C1 | B27: Aviso Prévio Indenizado | E27: 0.0324 | F27: =ROUND(E27*SUMIF(PFP!$B$8:$B$27,"MO1",PFP!$J$8:$J$27),2) -> 1920.68
A28: C2 | B28: Aviso Prévio Trabalhado | E28: 0.0008 | F28: =ROUND(E28*SUMIF(PFP!$B$8:$B$27,"MO1",PFP!$J$8:$J$27),2) -> 47.42
A29: C3 | B29: Férias Indenizadas | E29: 0.0036 | F29: =ROUND(E29*SUMIF(PFP!$B$8:$B$27,"MO1",PFP!$J$8:$J$27),2) -> 213.41
A30: C4 | B30: Depósito Rescisão Sem Justa Causa | E30: 0.0296 | F30: =ROUND(E30*SUMIF(PFP!$B$8:$B$27,"MO1",PFP!$J$8:$J$27),2) -> 1754.7
A31: C5 | B31: Indenização Adicional | E31: 0.0027 | F31: =ROUND(E31*SUMIF(PFP!$B$8:$B$27,"MO1",PFP!$J$8:$J$27),2) -> 160.06
A32: D | B32: REINCIDÊNCIAS | E32: =ROUND(SUM(E33:E34),4) -> 0.0799 | F32: =ROUND(E32*SUMIF(PFP!$B$8:$B$27,"MO1",PFP!$J$8:$J$27),2) -> 4736.49
A33: D1 | B33: Reincidência de "A" sobre "B" | E33: =ROUND(E8*E18,4) -> 0.077 | F33: =ROUND(E33*SUMIF(PFP!$B$8:$B$27,"MO1",PFP!$J$8:$J$27),2) -> 4564.58
A34: D2 | B34: Reincidência de "A" sobre Aviso Prévio Trabalhado e reincidência do FGTS sobre Aviso Prévio Indenizado | E34: =ROUND((E28*E8)+(E27*E16),4) -> 0.0029 | F34: =ROUND(E34*SUMIF(PFP!$B$8:$B$27,"MO1",PFP!$J$8:$J$27),2) -> 171.91
A35: K1a | B35: ENCARGOS SOCIAIS | E35: =ROUND(E8+E18+E26+E32,4) -> 0.7306 | F35: =ROUND(E35*SUMIF(PFP!$B$8:$B$27,"MO1",PFP!$J$8:$J$27),2) -> 43310.16
A36: Ka | B36: TAXA DE RESSARCIMENTO DE DESPESAS E ENCARGOS SOBRE MO1 | E36: =ROUND((1+E35+PFP3_FatorKd!E13)*(1+PFP3_FatorKd!E12)*(1+PFP3_FatorKd!E8),4) -> 2.3616
A37: OBSERVAÇÃO: CELETISTAS E EQUIVALENTES
A38: 1 - DISCRIMINAR OS ENCARGOS SOCIAIS COM SEUS RESPECTIVOS PERCENTUAS TOTALIZANDO OS MESMOS.
A39: 2 - APLICAR O % TOTAL P/ CALCULAR OS E. SOCIAIS INCIDENTES NA MÃO-DE-OBRA CELETISTAS
A40: Ka - Taxa de Ressarcimento de Despesas e Encargos sobre a Mão de Obra CELETISTA (incide apenas no Insumo Codigo MO1)
A41: Ka = (1 + K1 + K2) x (1 + K3) x (1 + K4)

Sheet PFP2.2_FatorKb
A1: DETALHAMENTO DOS ENCARGOS SOCIAIS: Kb | F1: CODIGO:
F2: PFP-2.2
A3: NOME DA CONSULTORA:
A5: PROJETO: | C5: CONTRATANTE: | F5: BASE: Nov/2021
A6: =PFP!A6 -> Estudos e Projeto Básico e Executivo do Sistema de Abastecimento de Água de Morro Cabeça no Tempo/PI | C6: CODEVASF (SEDE) | F6: SINAPI/DF: Mai/2021
A7: Cod | B7: DESCRIÇÃO | E7: % | F7: R$
A8: A | B8: ENCARGOS SOCIAIS BÁSICOS | E8: =ROUND(SUM(E9:E17),4) -> 0.2 | F8: =ROUND(E8*SUMIF(PFP!$B$8:$B$27,"MO2",PFP!$J$8:$J$27),2) -> 5424.2
A9: A1 | B9: INSS | E9: 0.2 | F9: =ROUND(E9*SUMIF(PFP!$B$8:$B$27,"MO2",PFP!$J$8:$J$27),2) -> 5424.2
A10: A2 | B10: SESI | E10: 0 | F10: =ROUND(E10*SUMIF(PFP!$B$8:$B$27,"MO2",PFP!$J$8:$J$27),2) -> 0
A11: A3 | B11: SENAI | E11: 0 | F11: =ROUND(E11*SUMIF(PFP!$B$8:$B$27,"MO2",PFP!$J$8:$J$27),2) -> 0
A12: A4 | B12: INCRA | E12: 0 | F12: =ROUND(E12*SUMIF(PFP!$B$8:$B$27,"MO2",PFP!$J$8:$J$27),2) -> 0
A13: A5 | B13: SEBRAE | E13: 0 | F13: =ROUND(E13*SUMIF(PFP!$B$8:$B$27,"MO2",PFP!$J$8:$J$27),2) -> 0
A14: A6 | B14: Salário Educação | E14: 0 | F14: =ROUND(E14*SUMIF(PFP!$B$8:$B$27,"MO2",PFP!$J$8:$J$27),2) -> 0
A15: A7 | B15: Seguro Contra Acidentes de Trabalho | E15: 0 | F15: =ROUND(E15*SUMIF(PFP!$B$8:$B$27,"MO2",PFP!$J$8:$J$27),2) -> 0
A16: A8 | B16: FGTS | E16: 0 | F16: =ROUND(E16*SUMIF(PFP!$B$8:$B$27,"MO2",PFP!$J$8:$J$27),2) -> 0
A17: A9 | B17: SECONCI | E17: 0 | F17: =ROUND(E17*SUMIF(PFP!$B$8:$B$27,"MO2",PFP!$J$8:$J$27),2) -> 0
A18: B | B18: ENCARGOS SOCIAIS QUE RECEBEM INCIDÊNCIA DE "A" | E18: =ROUND(SUM(E19:E25),4) -> 0 | F18: =ROUND(E18*SUMIF(PFP!$B$8:$B$27,"MO2",PFP!$J$8:$J$27),2) -> 0
A19: B3 | B19: Auxílio Enfermidade | E19: 0 | F19: =ROUND(E19*SUMIF(PFP!$B$8:$B$27,"MO2",PFP!$J$8:$J$27),2) -> 0
A20: B4 | B20: 13º Salário | E20: 0 | F20: =ROUND(E20*SUMIF(PFP!$B$8:$B$27,"MO2",PFP!$J$8:$J$27),2) -> 0
A21: B5 | B21: Licença Paternidade | E21: 0 | F21: =ROUND(E21*SUMIF(PFP!$B$8:$B$27,"MO2",PFP!$J$8:$J$27),2) -> 0
A22: B6 | B22: Faltas Justificadas | E22: 0 | F22: =ROUND(E22*SUMIF(PFP!$B$8:$B$27,"MO2",PFP!$J$8:$J$27),2) -> 0
A23: B8 | B23: Auxílio Acidente de Trabalho | E23: 0 | F23: =ROUND(E23*SUMIF(PFP!$B$8:$B$27,"MO2",PFP!$J$8:$J$27),2) -> 0
A24: B9 | B24: Férias Gozadas | E24: 0 | F24: =ROUND(E24*SUMIF(PFP!$B$8:$B$27,"MO2",PFP!$J$8:$J$27),2) -> 0
A25: B10 | B25: Salário Maternidade | E25: 0 | F25: =ROUND(E25*SUMIF(PFP!$B$8:$B$27,"MO2",PFP!$J$8:$J$27),2) -> 0
A26: C | B26: ENCARGOS SOCIAIS QUE NÃO RECEBEM INCIDÊNCIA DE "A" | E26: =ROUND(SUM(E27:E31),4) -> 0 | F26: =ROUND(E26*SUMIF(PFP!$B$8:$B$27,"MO2",PFP!$J$8:$J$27),2) -> 0
A27: C1 | B27: Aviso Prévio Indenizado | E27: 0 | F27: =ROUND(E27*SUMIF(PFP!$B$8:$B$27,"MO2",PFP!$J$8:$J$27),2) -> 0
A28: C2 | B28: Aviso Prévio Trabalhado | E28: 0 | F28: =ROUND(E28*SUMIF(PFP!$B$8:$B$27,"MO2",PFP!$J$8:$J$27),2) -> 0
A29: C3 | B29: Férias Indenizadas | E29: 0 | F29: =ROUND(E29*SUMIF(PFP!$B$8:$B$27,"MO2",PFP!$J$8:$J$27),2) -> 0
A30: C4 | B30: Depósito Rescisão Sem Justa Causa | E30: 0 | F30: =ROUND(E30*SUMIF(PFP!$B$8:$B$27,"MO2",PFP!$J$8:$J$27),2) -> 0
A31: C5 | B31: Indenização Adicional | E31: 0 | F31: =ROUND(E31*SUMIF(PFP!$B$8:$B$27,"MO2",PFP!$J$8:$J$27),2) -> 0
A32: D | B32: REINCIDÊNCIAS | E32: =ROUND(SUM(E33:E34),4) -> 0 | F32: =ROUND(E32*SUMIF(PFP!$B$8:$B$27,"MO2",PFP!$J$8:$J$27),2) -> 0
A33: D1 | B33: Reincidência de "A" sobre "B" | E33: =ROUND(E8*E18,4) -> 0 | F33: =ROUND(E33*SUMIF(PFP!$B$8:$B$27,"MO2",PFP!$J$8:$J$27),2) -> 0
A34: D2 | B34: Reincidência de "A" sobre Aviso Prévio Trabalhado e reincidência do FGTS sobre Aviso Prévio Indenizado | E34: =ROUND(E8*E28,4)+ROUND(E27*E11,4) -> 0 | F34: =ROUND(E34*SUMIF(PFP!$B$8:$B$27,"MO2",PFP!$J$8:$J$27),2) -> 0
A35: K1b | B35: ENCARGOS SOCIAIS | E35: =ROUND(E8+E18+E26+E32,4) -> 0.2 | F35: =ROUND(E35*SUMIF(PFP!$B$8:$B$27,"MO2",PFP!$J$8:$J$27),2) -> 5424.2
A36: Kb | B36: TAXA DE RESSARCIMENTO DE DESPESAS E ENCARGOS SOBRE MO2 | E36: =ROUND((1+E35+PFP3_FatorKd!E13)*(1+PFP3_FatorKd!E12)*(1+PFP3_FatorKd!E8),4) -> 1.6953
A37: OBSERVAÇÃO: AUTÔNOMOS E EQUIVALENTES
A38: 1 - DISCRIMINAR OS ENCARGOS SOCIAIS COM SEUS RESPECTIVOS PERCENTUAS TOTALIZANDO OS MESMOS.
A39: 2 - APLICAR O % TOTAL P/ CALCULAR OS E. SOCIAIS INCIDENTES NA MÃO-DE-OBRA AUTONÔMOS
A40: Kb - Taxa de Ressarcimento de Despesas e Encargos sobre a Mão de Obra AUTONÔMA (incide apenas no Insumo Codigo MO2)
A41: Kb = (1 + K1 + K2) x (1 + K3) x (1 + K4)

Sheet PFP2.3_FatorKc
A1: DETALHAMENTO DOS ENCARGOS SOCIAIS: Kc | F1: CODIGO:
F2: PFP-2.3
A3: NOME DA CONSULTORA:
A5: PROJETO: | C5: CONTRATANTE: | F5: BASE: Nov/2021
A6: =PFP!A6 -> Estudos e Projeto Básico e Executivo do Sistema de Abastecimento de Água de Morro Cabeça no Tempo/PI | C6: CODEVASF (SEDE) | F6: SINAPI/DF: Mai/2021
A7: Cod | B7: DESCRIÇÃO | E7: % | F7: R$
A8: A | B8: ENCARGOS SOCIAIS BÁSICOS | E8: =SUM(E9:E17) -> 0 | F8: =ROUND(E8*SUMIF(PFP!$B$8:$B$27,"MO3",PFP!$J$8:$J$27),2) -> 0
A9: A1 | B9: INSS | E9: 0 | F9: =ROUND(E9*SUMIF(PFP!$B$8:$B$27,"MO3",PFP!$J$8:$J$27),2) -> 0
A10: A2 | B10: SESI | E10: 0 | F10: =ROUND(E10*SUMIF(PFP!$B$8:$B$27,"MO3",PFP!$J$8:$J$27),2) -> 0
A11: A3 | B11: SENAI | E11: 0 | F11: =ROUND(E11*SUMIF(PFP!$B$8:$B$27,"MO3",PFP!$J$8:$J$27),2) -> 0
A12: A4 | B12: INCRA | E12: 0 | F12: =ROUND(E12*SUMIF(PFP!$B$8:$B$27,"MO3",PFP!$J$8:$J$27),2) -> 0
A13: A5 | B13: SEBRAE | E13: 0 | F13: =ROUND(E13*SUMIF(PFP!$B$8:$B$27,"MO3",PFP!$J$8:$J$27),2) -> 0
A14: A6 | B14: Salário Educação | E14: 0 | F14: =ROUND(E14*SUMIF(PFP!$B$8:$B$27,"MO3",PFP!$J$8:$J$27),2) -> 0
A15: A7 | B15: Seguro Contra Acidentes de Trabalho | E15: 0 | F15: =ROUND(E15*SUMIF(PFP!$B$8:$B$27,"MO3",PFP!$J$8:$J$27),2) -> 0
A16: A8 | B16: FGTS | E16: 0 | F16: =ROUND(E16*SUMIF(PFP!$B$8:$B$27,"MO3",PFP!$J$8:$J$27),2) -> 0
A17: A9 | B17: SECONCI | E17: 0 | F17: =ROUND(E17*SUMIF(PFP!$B$8:$B$27,"MO3",PFP!$J$8:$J$27),2) -> 0
A18: B | B18: ENCARGOS SOCIAIS QUE RECEBEM INCIDÊNCIA DE "A" | E18: =ROUND(SUM(E19:E25),4) -> 0 | F18: =ROUND(E18*SUMIF(PFP!$B$8:$B$27,"MO3",PFP!$J$8:$J$27),2) -> 0
A19: B3 | B19: Auxílio Enfermidade | E19: 0 | F19: =ROUND(E19*SUMIF(PFP!$B$8:$B$27,"MO3",PFP!$J$8:$J$27),2) -> 0
A20: B4 | B20: 13º Salário | E20: 0 | F20: =ROUND(E20*SUMIF(PFP!$B$8:$B$27,"MO3",PFP!$J$8:$J$27),2) -> 0
A21: B5 | B21: Licença Paternidade | E21: 0 | F21: =ROUND(E21*SUMIF(PFP!$B$8:$B$27,"MO3",PFP!$J$8:$J$27),2) -> 0
A22: B6 | B22: Faltas Justificadas | E22: 0 | F22: =ROUND(E22*SUMIF(PFP!$B$8:$B$27,"MO3",PFP!$J$8:$J$27),2) -> 0
A23: B8 | B23: Auxílio Acidente de Trabalho | E23: 0 | F23: =ROUND(E23*SUMIF(PFP!$B$8:$B$27,"MO3",PFP!$J$8:$J$27),2) -> 0
A24: B9 | B24: Férias Gozadas | E24: 0 | F24: =ROUND(E24*SUMIF(PFP!$B$8:$B$27,"MO3",PFP!$J$8:$J$27),2) -> 0
A25: B10 | B25: Salário Maternidade | E25: 0 | F25: =ROUND(E25*SUMIF(PFP!$B$8:$B$27,"MO3",PFP!$J$8:$J$27),2) -> 0
A26: C | B26: ENCARGOS SOCIAIS QUE NÃO RECEBEM INCIDÊNCIA DE "A" | E26: =ROUND(SUM(E27:E31),4) -> 0 | F26: =ROUND(E26*SUMIF(PFP!$B$8:$B$27,"MO3",PFP!$J$8:$J$27),2) -> 0
A27: C1 | B27: Aviso Prévio Indenizado | E27: 0 | F27: =ROUND(E27*SUMIF(PFP!$B$8:$B$27,"MO3",PFP!$J$8:$J$27),2) -> 0
A28: C2 | B28: Aviso Prévio Trabalhado | E28: 0 | F28: =ROUND(E28*SUMIF(PFP!$B$8:$B$27,"MO3",PFP!$J$8:$J$27),2) -> 0
A29: C3 | B29: Férias Indenizadas | E29: 0 | F29: =ROUND(E29*SUMIF(PFP!$B$8:$B$27,"MO3",PFP!$J$8:$J$27),2) -> 0
A30: C4 | B30: Depósito Rescisão Sem Justa Causa | E30: 0 | F30: =ROUND(E30*SUMIF(PFP!$B$8:$B$27,"MO3",PFP!$J$8:$J$27),2) -> 0
A31: C5 | B31: Indenização Adicional | E31: 0 | F31: =ROUND(E31*SUMIF(PFP!$B$8:$B$27,"MO3",PFP!$J$8:$J$27),2) -> 0
A32: D | B32: REINCIDÊNCIAS | E32: =ROUND(SUM(E33:E34),4) -> 0 | F32: =ROUND(E32*SUMIF(PFP!$B$8:$B$27,"MO3",PFP!$J$8:$J$27),2) -> 0
A33: D1 | B33: Reincidência de "A" sobre "B" | E33: =ROUND(E8*E18,4) -> 0 | F33: =ROUND(E33*SUMIF(PFP!$B$8:$B$27,"MO3",PFP!$J$8:$J$27),2) -> 0
A34: D2 | B34: Reincidência de "A" sobre Aviso Prévio Trabalhado e reincidência do FGTS sobre Aviso Prévio Indenizado | E34: =ROUND(E8*E28,4)+ROUND(E27*E11,4) -> 0 | F34: =ROUND(E34*SUMIF(PFP!$B$8:$B$27,"MO3",PFP!$J$8:$J$27),2) -> 0
A35: K1c | B35: ENCARGOS SOCIAIS | E35: =ROUND(E8+E18+E26+E32,4) -> 0 | F35: =ROUND(E35*SUMIF(PFP!$B$8:$B$27,"MO3",PFP!$J$8:$J$27),2) -> 0
A36: Kc | B36: TAXA DE RESSARCIMENTO DE DESPESAS E ENCARGOS SOBRE MO3 | E36: =ROUND((1+E35+PFP3_FatorKd!E13)*(1+PFP3_FatorKd!E12)*(1+PFP3_FatorKd!E8),4) -> 1.4441
A37: OBSERVAÇÃO: SOCIETÁRIOS E EQUIVALENTES
A38: 1 - DISCRIMINAR OS ENCARGOS SOCIAIS COM SEUS RESPECTIVOS PERCENTUAS TOTALIZANDO OS MESMOS.
A39: 2 - APLICAR O % TOTAL P/ CALCULAR OS E. SOCIAIS INCIDENTES NA MÃO-DE-OBRA DE SOCIETÁRIOS
A40: Kc - Taxa de Ressarcimento de Despesas e Encargos sobre a Mão de Obra SOCIETÁRIA (incide apenas no Insumo Codigo MO3)
A41: Kc = (1 + K1 + K2) x (1 + K3) x (1 + K4)

Sheet PFP3_FatorKd
A1: DESPESAS FISCAIS E CUSTOS DIVERSOS: Kc | F1: CODIGO:
F2: PFP-3
A3: NOME DA CONSULTORA:
A5: PROJETO: | C5: CONTRATANTE: | F5: BASE: Nov/2021
A6: =PFP!A6 -> Estudos e Projeto Básico e Executivo do Sistema de Abastecimento de Água de Morro Cabeça no Tempo/PI | C6: CODEVASF (SEDE) | F6: PROP: Jul/2021
A7: Cod | B7: DESCRIÇÃO1 | D7: % preço2 | E7: % custo4 | F7: R$
A8: K4 | B8: TRIBUTOS | D8: =ROUND(D9+D10+D11,4) -> 0.124 | E8: =ROUND(E9+E10+E11,4) -> 0.1416 | F8: =E8*SUM(SUMIF(PFP!$B$8:$B$27,"MO1",PFP!$J$8:$J$27)*(1+PFP2.1_FatorKa!$E$35)+SUMIF(PFP!$B$8:$B$27,"MO2",PFP!$J$8:$J$27)*(1+PFP2.2_FatorKb!$E$35)+SUMIF(PFP!$B$8:$B$27,"<>MO*",PFP!$J$8:$J$27)+$F$13+$F$12) -> 30074.4249
A9: K4.1 | B9: ISS | D9: 0.05 | E9: =ROUND((1/(1-$D$8))*D9,4) -> 0.0571 | F9: =E9*SUM(SUMIF(PFP!$B$8:$B$27,"MO1",PFP!$J$8:$J$27)*(1+PFP2.1_FatorKa!$E$35)+SUMIF(PFP!$B$8:$B$27,"MO2",PFP!$J$8:$J$27)*(1+PFP2.2_FatorKb!$E$35)+SUMIF(PFP!$B$8:$B$27,"<>MO*",PFP!$J$8:$J$27)+$F$13+$F$12) -> 12127.46936
A10: K4.2 | B10: PIS3 - aliquota efetiva aplicavel percentual-desconto | D10: =ROUND(1.65%*0.8,4) -> 0.0132 | E10: =ROUND((1/(1-$D$8))*D10,4) -> 0.0151 | F10: =E10*SUM(SUMIF(PFP!$B$8:$B$27,"MO1",PFP!$J$8:$J$27)*(1+PFP2.1_FatorKa!$E$35)+SUMIF(PFP!$B$8:$B$27,"MO2",PFP!$J$8:$J$27)*(1+PFP2.2_FatorKb!$E$35)+SUMIF(PFP!$B$8:$B$27,"<>MO*",PFP!$J$8:$J$27)+$F$13+$F$12) -> 3207.089096
A11: K4.3 | B11: COFINS3 - aliquota efetiva aplicavel percentual-desconto | D11: =ROUND(7.6%*0.8,4) -> 0.0608 | E11: =ROUND((1/(1-$D$8))*D11,4) -> 0.0694 | F11: =E11*SUM(SUMIF(PFP!$B$8:$B$27,"MO1",PFP!$J$8:$J$27)*(1+PFP2.1_FatorKa!$E$35)+SUMIF(PFP!$B$8:$B$27,"MO2",PFP!$J$8:$J$27)*(1+PFP2.2_FatorKb!$E$35)+SUMIF(PFP!$B$8:$B$27,"<>MO*",PFP!$J$8:$J$27)+$F$13+$F$12) -> 14739.86644
A12: K3 | B12: REMUNERAÇÃO DA EMPRESA (LUCRO) | E12: 0.1 | F12: =E12*SUM(SUMIF(PFP!$B$8:$B$27,"MO1",PFP!$J$8:$J$27)*(1+PFP2.1_FatorKa!$E$35)+SUMIF(PFP!$B$8:$B$27,"MO2",PFP!$J$8:$J$27)*(1+PFP2.2_FatorKb!$E$35)+SUMIF(PFP!$B$8:$B$27,"<>MO*",PFP!$J$8:$J$27)+$F$13) -> 19308.1824
A13: K2 | B13: CUSTOS DA ADMINISTRAÇÃO CENTRAL | E13: =ROUND(SUM(E14:E16),4) -> 0.15 | F13: =ROUND(E13*SUMIF(PFP!$B$8:$B$27,"MO*",PFP!$J$8:$J$27),2) -> 15360.69
A14: K2.1 | B14: Custos da administração central da empresa (diretoria, pessoal técnico de apoio e pessoal administrativo não diretamente vinculado à prestação dos serviços) | E14: 0.1 | F14: =ROUND(E14*SUMIF(PFP!$B$8:$B$27,"MO*",PFP!$J$8:$J$27),2) -> 10240.46
A15: K2.2 | B15: Outras despesas que afetam o custo de produção como treinamento, biblioteca, programa de qualidade, programa de benefícios, auditoria interna e externa | E15: 0.03 | F15: =ROUND(E15*SUMIF(PFP!$B$8:$B$27,"MO*",PFP!$J$8:$J$27),2) -> 3072.14
A16: K2.3 | B16: Despesas fixas e variaveis com patrimônio, aluguéis, comunicação, manutenção e transporte não diretamente relacionados com o custo direto dos serviços | E16: 0.02 | F16: =ROUND(E16*SUMIF(PFP!$B$8:$B$27,"MO*",PFP!$J$8:$J$27),2) -> 2048.09
A17: Kd | B17: TAXA RESSARCIMENTO DE DESPESAS SOBRE CUSTOS DIVERSOS | E17: =ROUND((1+E12)*(1+E8),4) -> 1.2558
A18: NOME DO INFORMANTE: | E18: QUALIFICAÇÃO:
A20: ASSINATURA: | E20: DATA:
A22: Observação:
A23: 1 - RELACIONAR OS CUSTOS DE ADMINISTRAÇÃO COM RESPECTIVOS PERCENTUAIS INCIDENTES NA MÃO -DE-OBRA
A24: 1 - DISCRIMINAR OS TRIBUTOS QUE INCIDEM SOBRE OS CUSTOS DA PRESTAÇÃO DOS SERVIÇOS
A25: 2 - K4 = INDICAR % DE CADA TRIBUTO E A SOMA DOS MESMOS (ex: ISS 5% + PIS 1,65% + COFINS 7,60% = 14,25%)
A26: 3 - PIS e COFINS, Regime de Incidencia Acumulativa (0,65% e 3,00% - sem percentual de desconto) ou em Regime de Incidencia Não Acumulativa (1,65% e 7,60% - aplicável percentual de desconto) de acordo com a forma de apuração do lucro no IRPJ. APRESENTAR COMPROVANTES de aproveitamento de créditos tributários dos últimos 12 meses em caso de aplicação de "percentual de desconto".
A27: 4 - AS DESPESAS FISCAIS (K4) INCIDEM SOBRE O TOTAL DA FATURA E NÃO SOBRE OS CUSTOS INCORRIDOS,
A28: DEVENDO SER CALCULADO O K4' APLICANDO-SE A SEGUINTE FÓRMULA:
A29: K4' = { [ 1 / ( 1 - K4) ] - 1 } x 100
A30: =CONCATENATE(" K4' = { [ 1 / ( 1 - ",D8," ) ] - 1 } x 100") -> K4' = { [ 1 / ( 1 - 0,124 ) ] - 1 } x 100
A31: Kc - Taxa de Ressarcimento de Despesas sobre Custos Diversos (incide sobre os Insumos Codigo DP e EM)
A32: Kc = (1 + K3) x (1 + K4)
A33: K2 - Incide sobre o Custo Total (CT) da Mão de Obra (MO* = MO1 + MO2)
A34: K3 - Incide sobre o Custo Total (CT) Mão de Obra com encargos (MO1 x Ka ou MO2 x Kb), demais Custos (DP e EM), e Custos da Administração Central (K2)
A35: K4 - Incide sobre o Custo Total (CT) Mão de Obra com encargos (MO1 x Ka ou MO2 x Kb), demais Custos (DP e EM), e Custos da Administração Central (K2) e Lucro (K3)

Sheet CRO1_Ins-Pro
A1: INSUMOS POR ETAPA/PRODUTO | H1: CODIGO:
H2: CRO-1
A3: Cod. | B3: Categoria / Insumo | C3: Uni | D3: Qde | E3: CUD | F3: PU | G3: FatorK | H3: EB | I3: EVA | J3: PBE
G4: Meses | H4: 3 | I4: 1 | J4: 1
A5: =PFP!C8 -> P0 | B5: =PFP!D8 -> Engenheiro coordenador (P8061) | C5: mês | D5: =SUM(H5:J5) -> 1 | E5: =PFP!G8 -> 16003.36 | F5: =PFP!H8 -> 23110.45 | G5: =PFP!I8 -> 1.4441 | I5: 0.5 | J5: 0.5
A6: =PFP!C9 -> P1 | B6: =PFP!D9 -> Engenheiro sênior (P8067) | C6: mês | D6: 2 | E6: =PFP!G9 -> 13560.49 | F6: =PFP!H9 -> 22989.1 | G6: =PFP!I9 -> 1.6953 | I6: 1 | J6: 1
A7: =PFP!C10 -> P2 | B7: =PFP!D10 -> Engenheiro pleno (P8066) | C7: mês | D7: 3 | E7: =PFP!G10 -> 10307.29 | F7: =PFP!H10 -> 24341.7 | G7: =PFP!I10 -> 2.3616 | H7: 1 | I7: 1 | J7: 1
A8: =PFP!C11 -> P3 | B8: =PFP!D11 -> Engenheiro júnior (P8065) | C8: mês | D8: 1 | E8: =PFP!G11 -> 9350 | F8: =PFP!H11 -> 22080.96 | G8: =PFP!I11 -> 2.3616 | J8: 1
A9: =PFP!C12 -> T1 | B9: =PFP!D12 -> Técnico de projetos/obra (P8147) | C9: mês | D9: 3 | E9: =PFP!G12 -> 2894.21 | F9: =PFP!H12 -> 6834.97 | G9: =PFP!I12 -> 2.3616 | H9: 1 | I9: 1 | J9: 1
A10: =PFP!C13 -> A1 | B10: =PFP!D13 -> Secretária (P8135) | C10: mês | D10: 1 | E10: =PFP!G13 -> 2204.93 | F10: =PFP!H13 -> 5207.16 | G10: =PFP!I13 -> 2.3616 | I10: 0.5 | J10: 0.5
A11: =PFP!C14 -> S1 | B11: =PFP!D14 -> Analista sênior | C11: mês | D11: 0.5 | E11: =PFP!G14 -> 6247.13 | F11: =PFP!H14 -> 14753.22 | G11: =PFP!I14 -> 2.3616 | I11: 0.5
A12: =PFP!C15 -> S2 | B12: =PFP!D15 -> Analista pleno | C12: mês | D12: 0.5 | E12: =PFP!G15 -> 3784.58 | F12: =PFP!H15 -> 8937.66 | G12: =PFP!I15 -> 2.3616 | I12: 0.5
A13: =PFP!C16 -> S3 | B13: =PFP!D16 -> Analista júnior | C13: mês | D13: 1 | E13: =PFP!G16 -> 3104.97 | F13: =PFP!H16 -> 7332.7 | G13: =PFP!I16 -> 2.3616 | J13: 1
A14: =PFP!C17 -> ECA | B14: =PFP!D17 -> Encargos Comp. e Adicionais | C14: mês | D14: 11 | E14: =PFP!G17 -> 815.05 | F14: =PFP!H17 -> 1023.54 | G14: =PFP!I17 -> 1.2558 | I14: =SUM(I5:I13) -> 5 | J14: =SUM(J5:J13) -> 6
A15: =PFP!C18 -> AT1 | B15: =PFP!D18 -> Auxilio Transporte Analista junior | C15: mês | D15: 1 | E15: =PFP!G18 -> 0 | F15: =PFP!H18 -> 0 | G15: =PFP!I18 -> 1.2558 | I15: =I13 -> 0 | J15: =J13 -> 1
A16: =PFP!C19 -> AT2 | B16: =PFP!D19 -> Auxilio Transporte Técnicos | C16: mês | D16: 2 | E16: =PFP!G19 -> 0 | F16: =PFP!H19 -> 0 | G16: =PFP!I19 -> 1.2558 | I16: =I9 -> 1 | J16: =J9 -> 1
A17: =PFP!C20 -> AT3 | B17: =PFP!D20 -> Auxilio Transporte Secretária | C17: mês | D17: 1 | E17: =PFP!G20 -> 12.98308 | F17: =PFP!H20 -> 16.3 | G17: =PFP!I20 -> 1.2558 | I17: =I10 -> 0.5 | J17: =J10 -> 0.5
A18: =PFP!C21 -> V1 | B18: =PFP!D21 -> Diárias | C18: dia | D18: 28 | E18: =PFP!G21 -> 239 | F18: =PFP!H21 -> 300.14 | G18: =PFP!I21 -> 1.2558 | I18: =I4*7*2 -> 14 | J18: =J4*7*2 -> 14
A19: =PFP!C22 -> V2 | B19: =PFP!D22 -> Pick-up Cab.dupla 2.0 Flex | C19: un | D19: 14 | E19: =PFP!G22 -> 534.65 | F19: =PFP!H22 -> 671.41 | G19: =PFP!I22 -> 1.2558 | I19: =I18/2 -> 7 | J19: =J18/2 -> 7
A20: =PFP!C23 -> V3 | B20: =PFP!D23 -> Passagens Aéreas (ida e volta) | C20: un | D20: 4 | E20: =PFP!G23 -> 1346.75 | F20: =PFP!H23 -> 1691.25 | G20: =PFP!I23 -> 1.2558 | I20: 2 | J20: 2
A21: =PFP!C24 -> M1 | B21: =PFP!D24 -> Relatório Parcial | C21: un | D21: 9 | E21: =PFP!G24 -> 34.41245818 | F21: =PFP!H24 -> 43.22 | G21: =PFP!I24 -> 1.2558 | H21: 3 | I21: 3 | J21: 3
A22: =PFP!C25 -> M2 | B22: =PFP!D25 -> Relatório Final | C22: un | D22: 9 | E22: =PFP!G25 -> 1525.911339 | F22: =PFP!H25 -> 1916.24 | G22: =PFP!I25 -> 1.2558 | H22: 3 | I22: 3 | J22: 3
A23: =PFP!C26 -> TOP | B23: =PFP!D26 -> Total Serviços Cartográficos | C23: un | D23: 1 | E23: =PFP!G26 -> - | F23: =PFP!H26 -> 97246.15 | G23: =PFP!I26 -> - | H23: 1
A24: =PFP!C27 -> GEO | B24: =PFP!D27 -> Total Serviços Geotécnicos | C24: un | D24: 1 | E24: =PFP!G27 -> - | F24: =PFP!H27 -> 77913.39 | G24: =PFP!I27 -> - | H24: 1
A25: =PFP!C28 -> AMB | B25: =PFP!D28 -> Total Serviços Ambientais | C25: un | D25: 1 | E25: =PFP!G28 -> - | F25: =PFP!H28 -> 3333.24 | G25: =PFP!I28 -> - | H25: 1
A26: TOTAL | B26: VALOR TOTAL POR PRODUTO | C26: R$ | D26: 441056.74 | H26: =SUM(H5:H25*$F$5:$F$25) -> 215547.83 | I26: =SUM(I5:I25*$F$5:$F$25) -> 103458.575 | J26: =SUM(J5:J25*$F$5:$F$25) -> 122050.335
C27: % | D27: 1 | H27: =ROUND(H26/$D$26,5) -> 0.48871 | I27: =ROUND(I26/$D$26,5) -> 0.23457 | J27: 0.27672
